lending/lending_fUSD_20240809
["ID","MTS","AMOUNT","RATE_DAILY","PERIOD"]
[334563131,1723218643317,-159.88,0.00010812,2]
[334563132,1723218643327,-1482.2,0.00010812,2]
[334563133,1723218643336,-159.88,0.00010817,2]
[334563134,1723218643346,-159.88,0.00010822,2]
[334563135,1723218643355,-159.88,0.00010827,2]
[334563136,1723218643365,-159.88,0.00010832,2]
[334563137,1723218643375,-162.19169298,0.00010899,2]
[334563138,1723218643384,-162.19169297,0.00010899,2]
[334563139,1723218643394,-162.19169297,0.00010899,2]
[334563140,1723218643404,-162.19169297,0.00010899,2]
[334563141,1723218643415,-162.19169297,0.00010899,2]
[334563142,1723218643425,-162.19169297,0.00010899,2]
[334563143,1723218643435,-162.19169297,0.00010899,2]
[334563144,1723218643445,-162.19169297,0.00010899,2]
[334563145,1723218643455,-162.19169297,0.00010899,2]
[334563146,1723218643465,-4989.8213,0.000109,2]
[334563147,1723218643474,-25627.641,0.000109,2]
[334563148,1723218643484,-15164.0379,0.000109,2]
[334563149,1723218643493,-1772.871,0.000109,2]
[334563150,1723218643503,-46242.99464156,0.000109,2]
[334563151,1723218643513,-162.19169297,0.000109,2]
[334563152,1723218643523,-250.0,0.00010959,2]
[334563153,1723218643533,-420.0,0.00010966,2]
[334563154,1723218643543,-420.0,0.00010966,2]
[334563155,1723218643554,-162.37804,0.0001099,2]
[334563156,1723218643563,-500.0,0.00010999,2]
[334563157,1723218643573,-298.53837683,0.00010999,2]
[334563159,1723218643584,-500.0,0.00010999,2]
[334563161,1723218643593,-209.62099625,0.00010999,2]
[334563162,1723218643602,-500.0,0.00010999,2]
[334563163,1723218643612,-500.0,0.00010999,2]
[334563168,1723218643776,-500.0,0.00010999,2]
[334563169,1723218643788,-500.0,0.00010999,2]
[334563170,1723218643797,-500.0,0.00010999,2]
[334563171,1723218643809,-500.0,0.00010999,2]
[334563173,1723218643818,-518.67254001,0.00010999,2]
[334563175,1723218643827,-500.0,0.00010999,2]
[334563177,1723218643837,-500.0,0.00010999,2]
[334563178,1723218643846,-500.0,0.00010999,2]
[334563180,1723218643856,-500.0,0.00010999,2]
[334563182,1723218643865,-500.0,0.00010999,2]
[334563184,1723218643874,-500.0,0.00010999,2]
[334563186,1723218643883,-240.0821422,0.00010999,2]
[334563187,1723218643892,-81480.15933711,0.00011,2]
[334563189,1723218643901,-95099.57187407,0.00011,2]
[334563191,1723218643913,-1909.90824921,0.00011,2]
[334563193,1723218643928,-711.66079676,0.00011,2]
[334563194,1723218643943,-1507.29,0.00011,2]
[334563195,1723218645402,227.71036735,9.262e-05,2]
[334563196,1723218646420,-242.76850774,0.000109,2]
[334563197,1723218646433,-2767.84069226,0.00011,2]
[334563198,1723218646570,-4148.01782332,0.00011,2]
[334563199,1723218646652,-590.59,0.00011,2]
[334563207,1723218722098,-155.0,9.962e-05,2]
[334563208,1723218722128,-264.43209294,9.962e-05,2]
[334563209,1723218722157,-227.71036735,9.962e-05,2]
[334563210,1723218722185,-285.78078625,9.962e-05,2]
[334563213,1723218789885,550.0,0.0001,2]
[334563214,1723218814726,227.71036735,9.962e-05,2]
[334563217,1723218837814,29.32167319,0.0001,2]
[334563218,1723218837843,133.36912436,0.0001,2]
[334563219,1723218844351,299.91075402,0.0001,2]
[334563220,1723218844928,413.04823206,0.0001,2]
[334563221,1723218855349,299.91075402,0.0001,2]
[334563222,1723218861399,181.83613503,0.0001,2]
[334563223,1723218895381,170.46315776,0.0001,2]
[334563224,1723218895713,92.77093781,0.0001,2]
[334563225,1723218954255,-134.93942954,0.0001,2]
[334563226,1723218954278,-1050.42686795,0.0001,2]
[334563227,1723218954300,-162.69079755,0.0001,2]
[334563228,1723218954324,-449.45808534,0.0001,2]
[334563229,1723218954346,-413.04823206,0.0001,2]
[334563230,1723218954368,-1065.45532671,0.0001078,2]
[334563231,1723218954392,-590.4,0.00010803,2]
[334563232,1723218954414,-300.0,0.00010899,2]
[334563233,1723218954436,-259.8033,0.000109,2]
[334563234,1723218954460,-1000.0,0.000109,2]
[334563235,1723218954483,-88.77796085,0.000109,2]
[334563236,1723218967995,-300.0,0.00010899,2]
[334563237,1723218968018,-300.0,0.00010899,2]
[334563238,1723218968040,-2888.74033915,0.000109,2]
[334563239,1723218968068,-1459.72523673,0.000109,2]
[334563240,1723218968093,-591.96647287,0.000109,2]
[334563241,1723218968115,-167.89750997,0.000109,2]
[334563242,1723218988476,368.51337824,0.000109,2]
[334563243,1723218995388,-250.0,0.00010959,2]
[334563244,1723218995411,-150.0,0.00010973,2]
[334563245,1723218995433,-11517.91,0.00010974,2]
[334563246,1723218995456,-208.0,0.00010991,2]
[334563247,1723218995478,-1118.65632901,0.00010999,3]
[334563248,1723218995501,-678.59073403,0.00010999,2]
[334563249,1723218996330,170.46315776,0.00010899,2]
[334563250,1723219001910,2314.28607432,0.000109,2]
[334563251,1723219020233,1031.55939396,0.00010682,2]
[334563252,1723219045364,162.69079755,0.00010682,2]
[334563253,1723219053055,1050.42686795,0.00010682,2]
[334563254,1723219058886,179.2595398,0.00010682,2]
[334563255,1723219103867,368.51337824,0.000109,2]
[334563256,1723219106431,170.46315776,0.00010682,2]
[334563257,1723219134045,1050.42686795,0.00010682,2]
[334563258,1723219134517,165.41,9.526e-05,2]
[334563259,1723219136346,170.46315776,0.00010682,2]
[334563260,1723219149820,220.33077975,0.00010682,2]
[334563261,1723219178561,165.01000427,0.000109,2]
[334563262,1723219195317,1077.78399421,0.00010682,2]
[334563263,1723219215066,1050.42686795,0.000109,2]
[334563265,1723219245176,1567.33416923,0.00010682,2]
[334563268,1723219296090,1050.42686795,0.000109,2]
[334563271,1723219318311,8034.72492359,0.000109,2]
[334563272,1723219632242,157.13,8.774e-05,2]
[334563302,1723219832711,-200.0,0.00010634,2]
[334563303,1723219832721,-155.0,0.00010635,2]
[334563304,1723219832731,-500.0,0.00010635,2]
[334563305,1723219832741,-250.0,0.00010776,2]
[334563306,1723219832751,-300.0,0.00010899,2]
[334563307,1723219832761,-300.0,0.00010899,2]
[334563308,1723219832772,-19497.38997641,0.000109,2]
[334563309,1723219832781,-201.55769184,0.000109,2]
[334563310,1723219832792,-250.0,0.00010959,2]
[334563311,1723219832802,-155.05228832,0.00010973,2]
[334563312,1723219832812,-370.45903161,0.00010999,2]
[334563313,1723219832822,-500.0,0.00010999,2]
[334563314,1723219832833,-500.0,0.00010999,2]
[334563315,1723219832843,-500.0,0.00010999,2]
[334563316,1723219832853,-500.0,0.00010999,2]
[334563317,1723219832862,-500.0,0.00010999,2]
[334563318,1723219832871,-500.0,0.00010999,2]
[334563319,1723219832880,-500.0,0.00010999,2]
[334563320,1723219832890,-500.0,0.00010999,2]
[334563321,1723219832900,-500.0,0.00010999,2]
[334563322,1723219832909,-500.0,0.00010999,2]
[334563323,1723219832918,-500.0,0.00010999,2]
[334563324,1723219832929,-500.0,0.00010999,2]
[334563325,1723219832938,-500.0,0.00010999,2]
[334563326,1723219832947,-500.0,0.00010999,2]
[334563327,1723219832957,-500.0,0.00010999,2]
[334563328,1723219832966,-500.0,0.00010999,2]
[334563329,1723219832975,-500.0,0.00010999,2]
[334563330,1723219832984,-500.0,0.00010999,2]
[334563331,1723219832994,-500.0,0.00010999,2]
[334563332,1723219833003,-500.0,0.00010999,2]
[334563333,1723219833013,-500.0,0.00010999,2]
[334563334,1723219833022,-500.0,0.00010999,2]
[334563335,1723219833031,-172.46341851,0.00010999,2]
[334563336,1723219833040,-803.81,0.00010999,2]
[334563337,1723219833049,-803.81,0.00010999,2]
[334563338,1723219833059,-803.81,0.00010999,2]
[334563339,1723219833069,-803.81,0.00010999,2]
[334563340,1723219833078,-803.81,0.00010999,2]
[334563341,1723219833088,-803.81,0.00010999,2]
[334563342,1723219833098,-803.81,0.00010999,2]
[334563343,1723219833108,-803.81,0.00010999,2]
[334563344,1723219833118,-803.81,0.00010999,2]
[334563345,1723219833127,-803.81,0.00010999,2]
[334563346,1723219833136,-803.81,0.00010999,2]
[334563347,1723219833145,-803.81,0.00010999,2]
[334563348,1723219833154,-803.81,0.00010999,2]
[334563349,1723219833163,-803.81,0.00010999,2]
[334563350,1723219833173,-803.81,0.00010999,2]
[334563351,1723219833187,-803.81,0.00010999,2]
[334563352,1723219833196,-803.81,0.00010999,2]
[334563353,1723219833206,-803.81,0.00010999,2]
[334563354,1723219833216,-803.81,0.00010999,2]
[334563355,1723219833226,-803.81,0.00010999,2]
[334563356,1723219833236,-803.81,0.00010999,2]
[334563357,1723219833245,-803.81,0.00010999,2]
[334563358,1723219833255,-803.81,0.00010999,2]
[334563359,1723219833264,-803.95837444,0.00010999,2]
[334563360,1723219833274,-500.0,0.00010999,2]
[334563361,1723219833283,-500.0,0.00010999,2]
[334563362,1723219833293,-439.42544129,0.00010999,2]
[334563363,1723219833303,-40740.07966856,0.00011,2]
[334563364,1723219833316,-449075.45217932,0.00011,2]
[334563365,1723219833328,-685.05424735,0.00011,2]
[334563366,1723219833343,-1447.27005468,0.00011,2]
[334563367,1723219833355,-599.703,0.00011,2]
[334563380,1723219838395,-5998.6,0.00011,2]
[334563381,1723219838461,-9420.08525104,0.00011,2]
[334563403,1723219840594,-2969967.17088482,0.00011,2]
[334563415,1723219840871,-48959.99455885,0.00011,2]
[334563493,1723219843245,-300.2493,0.00011,2]
[334563496,1723219843414,-1061.28,0.00011,2]
[334563497,1723219843472,-745.08646596,0.00011,2]
[334563522,1723219846389,-484373.74614807,0.00011,2]
[334563523,1723219846553,-4632.20993886,0.00011,2]
[334563546,1723220119866,199.9,8.219e-05,2]
[334563547,1723220155732,386.18690679,8.219e-05,2]
[334563548,1723220156286,1370.91176247,8.219e-05,2]
[334563566,1723220911264,150.0,0.00024158,120]
[334563568,1723220940149,-694.71,9.746e-05,2]
[334563569,1723220940180,-166.4,9.758e-05,2]
[334563570,1723220940208,-1775.95,9.758e-05,2]
[334563571,1723220940235,-184.3103186,9.784e-05,2]
[334563572,1723220940272,-1407.3696814,9.784e-05,2]
[334563573,1723220940302,-909.21,9.784e-05,2]
[334563574,1723220940329,-504.7906372,9.799e-05,2]
[334563575,1723220940369,-457.1293628,9.799e-05,2]
[334563576,1723220940396,-818.68038958,9.809e-05,2]
[334563586,1723221031640,-1039.32961042,9.809e-05,2]
[334563587,1723221031652,-401.10924421,9.869e-05,2]
[334563588,1723221031710,-251.33401974,9.869e-05,2]
[334563589,1723221031722,-706.11031433,9.869e-05,2]
[334563590,1723221031775,-493.86642172,9.869e-05,2]
[334563591,1723221031784,-527.68,9.933e-05,2]
[334563592,1723221031794,-4744.75357828,9.998e-05,2]
[334563593,1723221031805,-627.85298596,9.998e-05,2]
[334563594,1723221031839,-796.49343576,9.998e-05,2]
[334563597,1723221031849,-300.0,9.999e-05,2]
[334563613,1723221032072,-550.0,0.0001,2]
[334563614,1723221032083,-250.0,0.00010046,2]
[334563615,1723221032092,-170.39,0.00010273,2]
[334563616,1723221032101,-472.32,0.00010304,2]
[334563617,1723221032111,-199.9,0.00010482,2]
[334563618,1723221032120,-676.2827,0.000107,2]
[334563619,1723221032129,-499.99,0.00010709,2]
[334563620,1723221032138,-150.0,0.00010799,2]
[334563621,1723221032147,-6103.73275243,0.000108,2]
[334563629,1723221037555,-8733.22320206,0.000108,2]
[334563630,1723221037575,-8091.53632418,0.000108,2]
[334563631,1723221037587,-13734.99935808,0.000108,2]
[334563632,1723221037599,-1757.41072631,0.000108,2]
[334563633,1723221037655,-1787.65379213,0.000108,2]
[334563634,1723221037667,-1051.74850456,0.000108,2]
[334563635,1723221037873,-2528.06241086,0.000108,2]
[334563640,1723221039665,-58741.26192939,0.000108,2]
[334563641,1723221039676,-500.0,0.000108,2]
[334563642,1723221039685,-1000.0,0.000108,2]
[334563643,1723221039699,-541.6496,0.000108,2]
[334563644,1723221039709,-1848.8514,0.000108,2]
[334563645,1723221039718,-2500.0,0.000108,2]
[334563646,1723221039728,-200.0,0.00010873,2]
[334563647,1723221039739,-200.0,0.00010873,2]
[334563648,1723221039748,-245000.0,0.000109,2]
[334563649,1723221039757,-1069.1925,0.000109,2]
[334563650,1723221039768,-2680.2536,0.000109,2]
[334563651,1723221039778,-12383.0055,0.000109,2]
[334563652,1723221039789,-100000.0,0.000109,2]
[334563654,1723221039799,-169.46887535,0.000109,2]
[334563656,1723221039808,-169.46887535,0.000109,2]
[334563658,1723221039817,-534.50786604,0.000109,2]
[334563660,1723221039827,-414.64757615,0.00010958,2]
[334563662,1723221039837,-500.0,0.00010958,2]
[334563664,1723221039847,-500.0,0.00010958,2]
[334563665,1723221039857,-500.0,0.00010958,2]
[334563667,1723221039867,-500.0,0.00010958,2]
[334563669,1723221039876,-440.67932819,0.00010958,2]
[334563672,1723221039887,-503.4051891,0.00010958,2]
[334563674,1723221039896,-500.0,0.00010958,2]
[334563676,1723221039906,-500.0,0.00010958,2]
[334563678,1723221039915,-522.48038729,0.00010958,2]
[334563679,1723221039925,-1000.0,0.00010959,2]
[334563681,1723221039935,-150.0,0.00010959,2]
[334563683,1723221039946,-250.0,0.00010959,2]
[334563685,1723221039955,-166.4,0.00010977,2]
[334563687,1723221039965,-150.01,0.00010999,2]
[334563689,1723221039975,-188.75297818,0.00010999,2]
[334563691,1723221039985,-200.42850144,0.00010999,2]
[334563693,1723221039996,-571.77,0.00010999,2]
[334563695,1723221040006,-1008.19505592,0.00010999,2]
[334563697,1723221040016,-500.0,0.00010999,2]
[334563699,1723221040025,-500.0,0.00010999,2]
[334563701,1723221040035,-500.0,0.00010999,2]
[334563703,1723221040046,-497.78100007,0.00010999,2]
[334563705,1723221040055,-420.0,0.00010999,2]
[334563707,1723221040065,-500.0,0.00010999,2]
[334563709,1723221040074,-30852.89542802,0.00011,2]
[334563711,1723221040083,-2500299.9760617,0.00011,2]
[334563713,1723221040096,-356.36759524,0.00011,2]
[334563727,1723221042543,-64117.04509403,0.00011,2]
[334563730,1723221042695,-1232.8790104,0.00011,2]
[334563731,1723221042707,-86669.83223639,0.00011,2]
[334563732,1723221042780,-612.5168473,0.00011,2]
[334563741,1723221043779,-6815.2573313,0.00011,2]
[334563742,1723221043791,-1329.54172578,0.00011,2]
[334563750,1723221045559,-295.21458624,0.00011,2]
[334563751,1723221045570,-500.0,0.00011,2]
[334563752,1723221045598,-612.475,0.00011,2]
[334563753,1723221045642,-266.39857557,0.00011,2]
[334563754,1723221045654,-818.55008395,0.00011,2]
[334563755,1723221045665,-6362.28804746,0.00011,2]
[334563756,1723221045676,-522.88362862,0.00011,2]
[334563757,1723221045692,-1859.27888459,0.00011,2]
[334563758,1723221047967,-1488.3590197,0.00011,2]
[334563759,1723221047978,-2087.08,0.00011,2]
[334563760,1723221047989,-1434.79165165,0.00011,2]
[334563761,1723221048000,-1584.77000004,0.00011,2]
[334563762,1723221048011,-499.9097716,0.00011,2]
[334563763,1723221048026,-1303.17693193,0.00011,2]
[334563764,1723221048036,-2924.57046392,0.00011,2]
[334563765,1723221072147,179.91,8.946e-05,2]
[334563777,1723221552333,12076.99064295,0.00025,60]
[334563779,1723221567924,170.91,8.278e-05,2]
[334563784,1723221651066,-185.8021,9.658e-05,2]
[334563785,1723221651089,-347.35,0.00010054,2]
[334563786,1723221651112,-411.8479,0.00010105,2]
[334563795,1723222186638,162.36,8.219e-05,2]
[334563797,1723222232451,-1696.828072,9.981e-05,2]
[334563798,1723222232461,-250.0,0.00010031,2]
[334563799,1723222232471,-173.67,0.00010076,2]
[334563800,1723222232480,-23890.0,0.00010081,2]
[334563801,1723222232490,-10.3021,0.00010105,2]
[334563802,1723222232499,-427.19,0.00010172,2]
[334563803,1723222232508,-660.21,0.00010181,2]
[334563804,1723222232517,-300.16,0.00010183,2]
[334563805,1723222232527,-150.28256806,0.00010479,2]
[334563806,1723222232538,-12.07743194,0.00010479,2]
[334563807,1723222232547,-150.0,0.00010699,2]
[334563808,1723222232556,-471.25256806,0.000107,2]
[334563809,1723222232567,-650.14882909,0.000107,2]
[334563810,1723222232587,-667.36237526,0.000107,2]
[334563811,1723222232626,-0.20416181,0.000107,2]
[334563812,1723222232645,-341.42630098,0.000107,2]
[334563813,1723222232657,-8597.1853648,0.000107,2]
[334563814,1723222232666,-3781.4284,0.000107,2]
[334563815,1723222232675,-2416.0501,0.000107,2]
[334563816,1723222232685,-499.99,0.00010709,2]
[334563817,1723222232694,-61666.25,0.000108,2]
[334563818,1723222232704,-96697.6342,0.000108,2]
[334563819,1723222232713,-14143.7553,0.000108,2]
[334563820,1723222232722,-2000.0,0.000108,2]
[334563821,1723222232731,-155.11329335,0.00010843,2]
[334563822,1723222232741,-155.0,0.00010843,2]
[334563823,1723222232751,-221.80031135,0.00010899,2]
[334563824,1723222232761,-221.8003113,0.00010899,2]
[334563825,1723222232771,-221.8003113,0.00010899,2]
[334563826,1723222232780,-221.8003113,0.00010899,2]
[334563827,1723222232789,-221.8003113,0.00010899,2]
[334563828,1723222232799,-221.8003113,0.00010899,2]
[334563829,1723222232808,-221.8003113,0.00010899,2]
[334563830,1723222232817,-221.8003113,0.00010899,2]
[334563831,1723222232827,-221.8003113,0.00010899,2]
[334563832,1723222232836,-169.46887535,0.000109,2]
[334563833,1723222232845,-221.8003113,0.000109,2]
[334563834,1723222232854,-250.0,0.00010959,2]
[334563835,1723222232863,-200.0,0.00010973,2]
[334563836,1723222232873,-877.9361014,0.00010997,2]
[334563837,1723222232882,-150.01,0.00010999,2]
[334563838,1723222232909,-827.0,0.00011,2]
[334563839,1723222232918,-3809.3971308,0.00011,2]
[334563840,1723222232929,-508.47198714,0.00011,2]
[334563841,1723222232941,-418.90217464,0.00011,2]
[334563842,1723222232952,-1121.25510711,0.00011,2]
[334563843,1723222232964,-1093.82339275,0.00011,2]
[334563844,1723222232976,-1323.01385731,0.00011,2]
[334563852,1723222237921,-200.0,0.00010973,2]
[334563853,1723222237930,-275.14527595,0.00011,2]
[334563854,1723222237980,-1504.2,0.00011,2]
[334563855,1723222237992,-544.37084928,0.00011,2]
[334563856,1723222238093,-279.36,0.00011,2]
[334563976,1723222239669,-352.350938,0.00011,2]
[334563977,1723222239783,-3487.08721971,0.00011,2]
[334563978,1723222239904,-2837.74696614,0.00011,2]
[334563979,1723222239918,-959.819469,0.00011,2]
[334564142,1723222242600,-847.04000208,0.00011,2]
[334564143,1723222242611,-353.45656742,0.00011,2]
[334564144,1723222242667,-1561.30391115,0.00011,2]
[334564145,1723222242678,-1325.20799028,0.00011,2]
[334564146,1723222242689,-277.19009805,0.00011,2]
[334564147,1723222242700,-669.24902375,0.00011,2]
[334564148,1723222242724,-1676.1411247,0.00011,2]
[334564149,1723222242733,-789.0,0.00011,2]
[334564150,1723222242743,-108466.35887533,0.00011,2]
[334564151,1723222242754,-345300.38561149,0.00011,2]
[334564152,1723222242783,-976.81599005,0.00011,2]
[334564153,1723222242843,-11199.67287327,0.00011,2]
[334564169,1723222245789,-809.37849456,0.00011,2]
[334564170,1723222245800,-1967.4999995,0.00011,2]
[334564171,1723222245811,-3589.98717869,0.00011,2]
[334564172,1723222245853,-1278.44042038,0.00011,2]
[334564173,1723222245864,-12136.4417712,0.00011,2]
[334564174,1723222245876,-582.27653367,0.00011,2]
[334564175,1723222245888,-422.24066894,0.00011,2]
[334564176,1723222245904,-1505.125,0.00011,2]
[334564177,1723222245961,-2015.57078776,0.00011,2]
[334564178,1723222245973,-385.0630934,0.00011,2]
[334564179,1723222245984,-317.822044,0.00011,2]
[334564180,1723222245997,-2152.65565936,0.00011,2]
[334564181,1723222246008,-8571.89705668,0.00011,2]
[334564182,1723222246038,-711.0,0.00011,2]
[334564183,1723222246048,-695.15,0.00011,2]
[334564184,1723222246062,-2318.42279138,0.00011,2]
[334564185,1723222246076,-776.31930374,0.00011,2]
[334564186,1723222246087,-358.54738649,0.00011,2]
[334564187,1723222246098,-1564.47600514,0.00011,2]
[334564203,1723222410717,150.0,0.00024019,120]
[334564204,1723222507180,-550.0,0.0001,2]
[334564205,1723222516282,529.82,0.00010645,2]
[334564207,1723222613601,-173.67,0.00010114,2]
[334564208,1723222613625,-356.15,0.00010224,2]
[334564210,1723222708195,-1360.435455,0.00010172,2]
[334564211,1723222708227,-115.68,0.00010224,2]
[334564212,1723222708255,-194.46,0.0001069,2]
[334564213,1723222708286,-300.0,0.00010698,2]
[334564214,1723222708314,-300.0,0.00010698,2]
[334564215,1723222708342,-13827.99358047,0.00010698,2]
[334564216,1723222708371,-150.0,0.00010699,2]
[334564217,1723222708398,-63229.0427,0.000107,2]
[334564218,1723222708425,-7231.5072,0.000107,2]
[334564219,1723222708453,-1058.61668454,0.0001078,2]
[334564220,1723222708481,-1142.80437461,0.0001078,2]
[334564221,1723222708509,-545.37440001,0.00010899,2]
[334564222,1723222708538,-545.3744,0.00010899,2]
[334564223,1723222708569,-545.3744,0.00010899,2]
[334564224,1723222708597,-545.3744,0.00010899,2]
[334564225,1723222708625,-545.3744,0.00010899,2]
[334564226,1723222708653,-545.3744,0.000109,2]
[334564227,1723222708680,-545.3744,0.000109,2]
[334564228,1723222708707,-545.3744,0.000109,2]
[334564229,1723222708733,-545.3744,0.000109,2]
[334564230,1723222708761,-1000.0,0.000109,2]
[334564231,1723222708789,-545.3744,0.000109,2]
[334564232,1723222708818,-17270.35,0.00010911,2]
[334564233,1723222708845,-159.87,0.00010954,2]
[334564234,1723222708872,-150.01,0.00010999,2]
[334564235,1723222708900,-865.84,0.00010999,2]
[334564236,1723222708928,-865.84,0.00010999,2]
[334564237,1723222708956,-1161.09,0.00010999,2]
[334564238,1723222708984,-865.84,0.00010999,2]
[334564239,1723222709013,-1161.09,0.00010999,2]
[334564240,1723222709044,-865.84,0.00010999,2]
[334564241,1723222709079,-1161.09,0.00010999,2]
[334564242,1723222709110,-865.84,0.00010999,2]
[334564243,1723222709139,-865.84,0.00010999,2]
[334564244,1723222709167,-865.84,0.00010999,2]
[334564245,1723222709195,-865.84,0.00010999,2]
[334564246,1723222709227,-1161.09,0.00010999,2]
[334564247,1723222709255,-865.84,0.00010999,2]
[334564248,1723222709283,-1161.09,0.00010999,2]
[334564249,1723222709394,-865.84,0.00010999,2]
[334564250,1723222709441,-1161.09,0.00010999,2]
[334564251,1723222709468,-865.84,0.00010999,2]
[334564252,1723222709495,-1161.09,0.00010999,2]
[334564253,1723222709521,-865.84,0.00010999,2]
[334564254,1723222709556,-1161.09,0.00010999,2]
[334564255,1723222709583,-865.84,0.00010999,2]
[334564256,1723222709610,-1161.09,0.00010999,2]
[334564257,1723222709638,-865.84,0.00010999,2]
[334564258,1723222709664,-1161.09,0.00010999,2]
[334564259,1723222709692,-865.84,0.00010999,2]
[334564260,1723222709719,-1161.09,0.00010999,2]
[334564261,1723222709746,-865.84,0.00010999,2]
[334564262,1723222709773,-1161.09,0.00010999,2]
[334564263,1723222709800,-865.84,0.00010999,2]
[334564264,1723222709827,-1161.09,0.00010999,2]
[334564265,1723222709857,-865.84,0.00010999,2]
[334564266,1723222709884,-1161.09,0.00010999,2]
[334564267,1723222709913,-865.84,0.00010999,2]
[334564268,1723222709943,-1161.09,0.00010999,2]
[334564269,1723222709972,-865.84,0.00010999,2]
[334564270,1723222710000,-1161.09,0.00010999,2]
[334564271,1723222710029,-865.84,0.00010999,2]
[334564272,1723222710058,-1161.09,0.00010999,2]
[334564273,1723222710087,-865.84,0.00010999,2]
[334564274,1723222710115,-1161.09,0.00010999,2]
[334564275,1723222710144,-865.84,0.00010999,2]
[334564276,1723222710171,-1161.09,0.00010999,2]
[334564277,1723222710203,-866.02,0.00010999,2]
[334564278,1723222710233,-1161.09,0.00010999,2]
[334564279,1723222710264,-1161.09,0.00010999,2]
[334564280,1723222710293,-1161.09,0.00010999,2]
[334564281,1723222710319,-1161.09,0.00010999,2]
[334564282,1723222710345,-1161.3296873,0.00010999,2]
[334564283,1723222710372,-500.0,0.00010999,2]
[334564284,1723222710398,-500.0,0.00010999,2]
[334564285,1723222710425,-500.0,0.00010999,2]
[334564286,1723222710451,-500.0,0.00010999,2]
[334564287,1723222710477,-500.0,0.00010999,2]
[334564288,1723222710503,-500.0,0.00010999,2]
[334564289,1723222710530,-500.0,0.00010999,2]
[334564290,1723222710556,-500.0,0.00010999,2]
[334564291,1723222710582,-586.72,0.00010999,2]
[334564292,1723222710609,-635.0,0.00011,2]
[334564293,1723222710638,-168160.02631807,0.00011,2]
[334564294,1723222711272,150.0,0.00023855,120]
[334564295,1723222744670,182.6,9.146e-05,2]
[334564296,1723222984660,-272.1,0.00010461,2]
[334564297,1723222984686,-159.88,0.00010801,2]
[334564298,1723222984713,-159.88,0.00010815,2]
[334564299,1723222984738,-159.88,0.00010828,2]
[334564300,1723222984764,-159.88,0.00010842,2]
[334564301,1723222984790,-159.88,0.00010855,2]
[334564302,1723222984815,-250.0,0.0001086,2]
[334564303,1723222984839,-1372.21503,0.0001089,2]
[334564304,1723222984862,-246.504769,0.000109,2]
[334564305,1723222984885,-189.55387216,0.000109,2]
[334564306,1723222984909,-79202.00261916,0.00010997,2]
[334564307,1723222984932,-150.01,0.00010999,2]
[334564308,1723222984956,-500.0,0.00010999,2]
[334564309,1723222984979,-500.0,0.00010999,2]
[334564310,1723222985002,-153.23,0.00010999,2]
[334564311,1723222985026,-502.0,0.00010999,2]
[334564312,1723222985049,-500.0,0.00010999,2]
[334564313,1723222985074,-500.0,0.00010999,2]
[334564314,1723222985243,-500.0,0.00010999,2]
[334564315,1723222985267,-500.0,0.00010999,2]
[334564316,1723222985293,-500.0,0.00010999,2]
[334564317,1723222985319,-500.0,0.00010999,2]
[334564318,1723222985343,-500.0,0.00010999,2]
[334564319,1723222985368,-171.19,0.00010999,2]
[334564320,1723222985392,-500.0,0.00010999,2]